bitfinex-derivatives/quotes_ETHF0:USTF0_20251003
["timestamp","ask_amount","ask_price","bid_price","bid_amount"]
[1759523471109,0.3224,4523.8,4523.5,0.4419]
[1759523471319,1.13923,4523.6,4523.5,0.7508]
[1759523471516,1.13923,4523.6,4523.5,0.9718]
[1759523473618,0.60793,4523.6,4523.5,1.094]
[1759523473825,0.39763,4523.6,4523.5,1.094]
[1759523478121,0.0023409,4524.0,4523.9,0.4311]
[1759523478322,0.0023409,4524.0,4523.9,0.9718]
[1759523479326,0.0023409,4524.0,4523.9,5.9718]
[1759523482729,0.2126409,4524.0,4523.9,0.7508]
[1759523482930,0.7439409,4524.0,4523.9,0.7508]
[1759523483331,0.7439409,4524.0,4523.9,0.9718]
[1759523484530,1.1415309,4524.0,4523.9,0.9718]
[1759523489037,0.8191309,4524.0,4523.9,0.9718]
[1759523490036,0.3999309,4524.0,4523.9,0.9718]
[1759523490242,0.6143309,4524.0,4523.9,0.9718]
[1759523490438,0.0023409,4524.0,4523.9,1.3694]
[1759523490935,0.0023409,4524.0,4523.9,6.3694]
[1759523494654,0.6151,4525.1,4525.0,0.6705]
[1759523494956,0.6151,4525.1,4525.0,4.3105]
[1759523495549,0.61782038,4525.1,4525.0,4.31219841]
[1759523495745,0.40022038,4525.1,4525.0,4.31219841]
[1759523496146,0.40022038,4525.1,4525.0,4.70970841]
[1759523496445,0.40022038,4525.1,4525.0,4.31219841]
[1759523497057,1.14842038,4525.1,4525.0,3.95729841]
[1759523497360,6.14842038,4525.1,4525.0,0.22269841]
[1759523497545,1.14579,4524.1,4524.0,3.419]
[1759523497752,1.14579,4524.1,4524.0,3.9582]
[1759523498053,1.14579,4524.1,4524.0,4.1766]
[1759523498547,1.14579,4524.1,4524.0,4.31302524]
[1759523498548,0.61519,4524.1,4524.0,4.31302524]
[1759523498756,0.39759,4524.1,4524.0,4.31302524]
[1759523498946,1.14579,4524.1,4524.0,4.31302524]
[1759523502554,1.14579,4524.1,4524.0,4.17912524]
[1759523502757,1.14579,4524.1,4524.0,3.95812524]
[1759523502948,1.14579,4524.1,4524.0,4.17912524]
[1759523504254,1.14579,4524.1,4524.0,4.31302524]
[1759523504558,0.39759,4524.1,4524.0,4.31302524]
[1759523506753,0.61519,4524.1,4524.0,4.31302524]
[1759523506952,1.14579,4524.1,4524.0,4.31302524]
[1759523507153,1.14579,4524.1,4524.0,4.17912524]
[1759523508150,1.14579,4524.1,4524.0,4.31302524]
[1759523509145,0.39759,4524.1,4524.0,4.31302524]
[1759523509350,0.39759,4524.1,4524.0,4.71061524]
[1759523509547,0.39759,4524.1,4524.0,4.31302524]
[1759523509753,0.39759,4524.1,4524.0,4.71061524]
[1759523509954,0.39758,4524.2,4524.1,0.82718]
[1759523510150,0.39757,4524.3,4524.2,0.39757]
[1759523510356,0.92392,4524.8,4524.7,0.4296]
[1759523510557,0.61512,4524.8,4524.7,0.6506]
[1759523510855,0.61512,4524.8,4524.7,0.9688]
[1759523511951,0.92392,4524.8,4524.7,0.9688]
[1759523512958,1.14572,4524.8,4524.7,0.9688]
[1759523513348,0.39752,4524.8,4524.7,0.9688]
[1759523513549,0.61512,4524.8,4524.7,0.9688]
[1759523513853,0.92392,4524.8,4524.7,0.9688]
[1759523514054,0.39752,4524.8,4524.7,0.6506]
[1759523514255,0.39752,4524.8,4524.7,0.9688]
[1759523514455,0.61512,4524.8,4524.7,0.9688]
[1759523516059,0.92392,4524.8,4524.7,0.9688]
[1759523516455,1.14572,4524.8,4524.7,0.9688]
[1759523516657,0.61512,4524.8,4524.7,0.9688]
[1759523516857,0.92392,4524.8,4524.7,0.9688]
[1759523517053,0.00272038,4525.1,4525.0,0.5635]
[1759523517254,0.40022038,4525.1,4525.0,1.50021]
[1759523517462,0.40022038,4525.1,4525.0,1.1027]
[1759523517656,0.40022038,4525.1,4525.0,1.50021]
[1759523517856,0.40022038,4525.1,4525.0,1.1027]
[1759523518464,1.14842038,4525.1,4525.0,1.1027]
[1759523519664,1.14842038,4525.1,4525.0,0.221]
[1759523519866,0.92393,4524.7,4524.6,0.7478]
[1759523520163,0.92393,4524.7,4524.6,0.9688]
[1759523521170,0.39753,4524.7,4524.6,0.9688]
[1759523521369,0.00272038,4525.1,4525.0,1.27921]
[1759523521559,0.00272038,4525.1,4525.0,4.70801]
[1759523522367,0.99352,4526.2,4525.0,4.70801]
[1759523522368,1.16369,4526.3,4526.2,0.7595]
[1759523522669,1.16369,4526.3,4526.2,0.9805]
[1759523523264,0.39738,4526.5,4526.4,0.7595]
[1759523523563,1.16546645,4526.5,4526.4,0.9805]
[1759523523761,1.16546645,4526.5,4526.4,1.15788642]
[1759523526470,0.82816645,4526.5,4526.4,1.15788642]
[1759523528572,1.16546645,4526.5,4526.4,1.15788642]
[1759523528763,0.39916645,4526.5,4526.4,1.15788642]
[1759523530171,0.95476645,4526.5,4526.4,1.15788642]
[1759523531070,1.16546645,4526.5,4526.4,1.15788642]
[1759523531980,0.82816645,4526.5,4526.4,1.15788642]
[1759523532268,0.39916645,4526.5,4526.4,1.15788642]
[1759523532874,0.00178645,4526.5,4526.4,1.15788642]
[1759523534277,0.00178645,4526.5,4526.4,1.55526642]
[1759523535274,0.3373,4527.3,4526.9,0.39734]
[1759523535571,1.1636,4527.3,4527.2,3.7519]
[1759523536479,1.16633357,4527.3,4527.2,3.7546264]
[1759523536779,1.16633357,4527.3,4527.2,3.9700264]
[1759523537371,1.16633357,4527.3,4527.2,0.2237264]
[1759523537579,1.16633357,4527.3,4526.7,3.2078]
[1759523537580,0.82635,4526.8,4526.7,3.2078]
[1759523537770,1.16365,4526.8,4526.7,3.6451]
[1759523537970,1.16365,4526.8,4526.7,4.1883]
[1759523538171,0.3373,4527.2,4526.7,4.1883]
[1759523538378,0.95291,4527.2,4527.1,0.7595]
[1759523538681,0.95291,4527.2,4527.1,0.98309638]
[1759523538978,1.16361,4527.2,4527.1,0.98309638]
[1759523540783,1.16361,4527.2,4527.1,0.76209638]
[1759523540975,1.16361,4527.2,4527.1,0.98309638]
[1759523542981,1.16361,4527.2,4527.1,0.00259638]
[1759523543282,1.16361,4527.2,4527.1,0.22359638]
[1759523544483,1.16361,4527.2,4527.1,0.76769638]
[1759523544875,1.16361,4527.2,4527.1,0.98309638]
[1759523546078,1.16361,4527.2,4527.1,1.38041638]
[1759523546381,0.82631,4527.2,4527.1,0.98309638]
[1759523546782,1.16361,4527.2,4527.1,0.98309638]
[1759523547280,1.16361,4527.2,4527.1,0.54579638]
[1759523547580,1.16361,4527.2,4527.1,0.00259638]
[1759523547777,1.16361,4527.2,4527.1,0.22359638]
[1759523548977,1.16361,4527.2,4527.1,0.00259638]
[1759523549282,1.16361,4527.2,4527.1,0.22359638]
[1759523550084,1.16361,4527.2,4527.1,0.00259638]
[1759523550284,1.16361,4527.2,4527.1,0.22359638]
[1759523550682,1.16361,4527.2,4527.1,0.00259638]
[1759523550884,1.16361,4527.2,4527.1,0.22359638]
[1759523551083,1.16361,4527.2,4527.1,0.00259638]
[1759523551381,1.16361,4527.2,4527.1,0.22359638]
[1759523552782,1.16361,4527.2,4527.1,6.38e-06]
[1759523552977,1.16361,4527.2,4527.1,0.22100638]
[1759523553177,1.16361,4527.2,4527.1,6.38e-06]
[1759523553178,0.82631,4527.2,4527.1,6.38e-06]
[1759523553382,1.16391,4527.2,4527.1,0.22100638]
[1759523553886,1.16391,4527.2,4527.1,6.38e-06]
[1759523554492,1.6609853,4527.2,4527.1,6.38e-06]
[1759523554680,4.24313505,4527.2,4527.1,6.38e-06]
[1759523554881,0.39739,4526.3,4526.2,3.2078]
[1759523555088,0.83592,4526.0,4525.9,0.5385]
[1759523555388,1.17352,4526.0,4525.9,0.5385]
[1759523555579,1.17352,4526.0,4525.9,0.7595]
[1759523555782,1.17352,4526.0,4525.9,0.5385]
[1759523556082,1.17352,4526.0,4525.9,0.97256029]
[1759523556774,1.29812,4526.0,4525.9,0.00206029]
[1759523556981,1.29812,4526.0,4525.9,0.22306029]
[1759523558288,1.29812,4526.0,4525.9,0.00206029]
[1759523558486,1.29812,4526.0,4525.9,0.22306029]
[1759523558688,1.29812,4526.0,4525.9,0.00206029]
[1759523570392,0.39754,4524.6,4524.5,0.8731]
[1759523570588,0.39754,4524.6,4524.5,0.9771]
[1759523571291,0.39754,4524.6,4524.5,0.97917296]
[1759523571590,0.39754,4524.6,4524.5,1.37672296]
[1759523571789,0.99373,4525.2,4524.5,1.37672296]
[1759523571790,0.61333,4524.8,4524.7,1.14703]
[1759523571986,0.39752,4524.9,4524.8,0.39752]
[1759523572294,0.39752,4524.9,4524.8,1.14702]
[1759523574795,0.39752,4524.9,4524.8,1.36802]
[1759523576493,9.93416,4526.7,4524.8,1.36802]
[1759523576494,0.83591,4526.1,4526.0,0.5574]
[1759523576795,0.83591,4526.1,4526.0,0.7784]
[1759523577093,0.83591,4526.1,4526.0,1.0956]
[1759523577690,0.39741,4526.1,4526.0,1.0956]
[1759523577889,0.61321,4526.1,4526.0,1.0956]
[1759523579393,0.39741,4526.1,4526.0,1.0956]
[1759523579598,0.61317,4526.5,4526.4,0.7495]
[1759523579896,0.83853357,4527.3,4527.2,0.7495]
[1759523580199,0.83853357,4527.3,4527.2,0.9705]
[1759523580601,0.61583357,4527.3,4527.2,0.9705]
[1759523581093,0.83853357,4527.3,4527.2,0.9705]
[1759523581701,0.40003357,4527.3,4527.2,0.9705]
[1759523584003,0.00273357,4527.3,4527.2,0.9705]
[1759523584202,0.00273357,4527.3,4527.2,5.9705]
[1759523584604,0.01409454,4527.9,4527.8,0.7368]
[1759523584902,0.01409454,4527.9,4527.8,4.56286]
[1759523585098,0.01409454,4527.9,4527.8,9.56286]
[1759523585601,0.01409454,4527.9,4527.8,9.56556948]
[1759523585602,0.01577999,4527.9,4527.8,9.56556948]
[1759523585801,0.01577999,4527.9,4527.8,9.16830948]
[1759523586698,0.01577999,4527.9,4527.8,4.16830948]
[1759523587100,0.01577999,4527.9,4527.8,3.94730948]
[1759523587302,0.22857999,4527.9,4527.8,3.94730948]
[1759523587496,0.22857999,4527.9,4527.8,4.16830948]
[1759523588205,0.22857999,4527.9,4527.8,3.94730948]
[1759523588405,0.22857999,4527.9,4527.8,4.16830948]
[1759523588907,0.72527999,4527.9,4527.8,0.96050948]
[1759523589402,0.44627999,4527.9,4527.8,0.96050948]
[1759523590308,0.72527999,4527.9,4527.8,0.22370948]
[1759523591409,0.72527999,4527.9,4527.8,0.42730948]
[1759523591708,0.72527999,4527.9,4527.8,0.22370948]
[1759523592201,0.72527999,4527.9,4527.8,0.00270948]
[1759523592607,0.72527999,4527.9,4527.8,0.22370948]
[1759523592801,0.72527999,4527.9,4527.8,0.00270948]
[1759523593008,0.72527999,4527.9,4527.8,0.22370948]
[1759523596817,1.12252999,4527.9,4527.8,0.22370948]
[1759523602018,0.82785,4526.8,4526.7,3.9446]
[1759523602325,0.82785,4526.8,4526.7,4.1656]
[1759523602326,1.15315,4526.8,4526.7,4.1656]
[1759523602522,0.39735,4526.8,4526.7,4.1656]
[1759523602915,0.39735,4526.8,4526.7,4.16786869]
[1759523604429,0.39735,4526.8,4526.7,4.56522869]
[1759523605016,0.39735,4526.8,4526.7,4.16786869]
[1759523606932,0.61015,4526.8,4526.7,4.16786869]
[1759523607224,0.93545,4526.8,4526.7,4.16786869]
[1759523607825,1.15315,4526.8,4526.7,3.94686869]
[1759523608028,1.15315,4526.8,4526.7,4.16786869]
[1759523611635,0.60845,4526.8,4526.7,4.16786869]
[1759523611936,0.92915,4526.8,4526.7,4.16786869]
[1759523613335,1.15075,4526.8,4526.7,4.16786869]
[1759523615542,1.15075,4526.8,4526.7,0.00226869]
[1759523615834,1.15075,4526.8,4526.7,0.22326869]
[1759523616041,6.15075,4526.8,4526.7,1e-08]
[1759523616238,6.15075,4526.8,4526.7,0.22100001]
[1759523617037,6.15075,4526.8,4526.7,1e-08]
[1759523617238,5.83005,4526.8,4526.7,1e-08]
[1759523619839,5.83005,4526.8,4526.6,0.221]
[1759523620136,5.83005,4526.8,4524.9,0.99378]
[1759523620137,0.7446,4525.6,4525.5,3.2078]
[1759523620442,1.14205,4525.6,4525.5,3.4118]
[1759523620643,1.14205,4525.6,4525.5,3.6328]
[1759523621043,1.14205,4525.6,4525.5,3.63451569]
[1759523621743,1.14205,4525.6,4525.5,3.20951569]
[1759523621946,1.14205,4525.6,4525.5,3.43051569]
[1759523622242,1.14205,4525.6,4525.5,3.63451569]
[1759523623236,1.14205,4525.6,4525.5,0.42671569]
[1759523625445,1.14205,4525.6,4525.5,0.20571569]
[1759523626245,1.14205,4525.6,4525.5,0.00171569]
[1759523628148,1.14209,4525.2,4525.1,0.2478]
[1759523628341,1.14209,4525.2,4525.1,0.4518]
[1759523628536,1.14209,4525.2,4525.1,0.204]
[1759523629043,1.14209,4525.2,4525.1,0.20607795]
[1759523629245,1.14209,4525.2,4525.1,0.00207795]
[1759523632747,0.61962,4524.8,4524.7,0.2476]
[1759523633043,0.61962,4524.8,4524.2,0.221]
[1759523633044,3.68258601,4524.8,4524.2,0.221]
[1759523633249,0.7446,4523.9,4523.8,0.18279164]
[1759523633440,0.7446,4523.9,4523.8,0.38679164]
[1759523633745,0.74668851,4523.9,4523.8,0.20603419]
[1759523634142,0.74668851,4523.9,4523.8,0.00203419]
[1759523640749,0.74668851,4523.9,4523.8,1.10954419]
[1759523640750,0.53118851,4523.9,4523.8,1.10954419]
[1759523640950,0.00208851,4523.9,4523.8,4.31734419]
[1759523641147,0.3453,4524.5,4524.4,0.82226]
[1759523641349,0.307,4524.5,4524.4,4.1387]
[1759523641653,0.5291,4524.5,4524.4,4.1387]
[1759523641850,0.39754,4524.6,4524.4,8.8535]
[1759523642044,0.4302,4525.0,4524.9,0.71]
[1759523642045,0.70451,4525.0,4524.9,0.71]
[1759523642244,0.70451,4525.0,4524.9,0.931]
[1759523642245,0.70709527,4525.0,4524.9,0.931]
[1759523643149,0.91739527,4525.0,4524.9,0.931]
[1759523643948,0.91739527,4525.0,4524.9,4.1388]
[1759523644148,0.70709527,4525.0,4524.9,4.1388]
[1759523644348,0.70709527,4525.0,4524.9,3.8535]
[1759523644349,1.24679527,4525.0,4524.9,3.8535]
[1759523644548,1.24679527,4525.0,4524.9,3.4288]
[1759523644749,1.24679527,4525.0,4524.9,3.2078]
[1759523644955,1.24679527,4525.0,4524.9,3.4288]
[1759523645159,1.13527,4524.3,4524.2,3.2078]
[1759523645350,1.13527,4524.3,4524.2,0.2046]
[1759523645656,1.1353,4523.9,4523.8,0.41303419]
[1759523645844,1.1353,4523.9,4523.8,3.84183419]
[1759523646450,0.9307,4523.9,4523.8,4.12713419]
[1759523647256,1.1353,4523.9,4523.8,3.84183419]
[1759523647452,1.1353,4523.9,4523.8,3.20983419]
[1759523648359,1.1353,4523.9,4523.8,0.00203419]
[1759523649959,0.73274,4523.5,4523.4,0.2476]
[1759523650253,0.39766,4523.3,4523.2,0.221]
[1759523650461,1.13536,4523.3,4523.2,0.632]
[1759523650955,1.13536,4523.3,4523.2,0.63473188]
[1759523651553,1.13536,4523.3,4523.2,0.22373188]
[1759523652058,1.13536,4523.3,4523.2,0.00273188]
[1759523652248,1.13536,4523.3,4523.2,0.22373188]
[1759523652852,1.13536,4523.3,4523.2,1.88e-06]
[1759523655165,0.3228,4523.3,4523.2,3.90410188]
[1759523655359,0.3228,4523.5,4523.4,0.411]
[1759523655566,0.3228,4523.5,4523.4,0.9173]
[1759523655861,0.5331,4523.5,4523.4,0.9173]
[1759523656763,0.5331,4523.5,4523.4,0.6963]
[1759523656963,0.5331,4523.5,4523.4,0.9173]
[1759523658265,0.8625,4523.5,4523.4,0.632]
[1759523658866,1.26014,4523.5,4523.4,1.02965]
[1759523659361,0.3228,4523.5,4523.4,1.31495]
[1759523659664,0.72044,4523.5,4523.4,1.31495]
[1759523659867,0.93074,4523.5,4523.4,1.31495]
[1759523662865,1.05554,4523.5,4523.4,1.31495]
[1759523663065,1.05549,4524.0,4523.9,0.411]
[1759523663371,1.05549,4524.0,4523.9,0.9173]
[1759523663567,1.26009,4524.0,4523.9,0.632]
[1759523663869,1.26009,4524.0,4523.9,0.4256]
[1759523666766,1.26009,4524.0,4523.7,3.4549]
[1759523666767,1.13531,4523.8,4523.7,0.2471]
[1759523667162,4.01014629,4523.8,4523.7,0.2471]
[1759523668376,4.01014629,4523.8,4523.2,3.20780188]
[1759523668377,0.81766,4523.3,4523.2,1.88e-06]
[1759523668671,0.81766,4523.3,4523.2,0.22100188]
[1759523669174,1.14346,4523.3,4523.2,0.22100188]
[1759523669761,1.14346,4523.3,4523.2,1.88e-06]
[1759523669973,0.81766,4523.3,4523.2,1.88e-06]
[1759523681273,0.1248,4524.0,4523.4,0.39764]
[1759523681569,0.96689,4524.0,4523.9,0.2053]
[1759523681772,0.4445,4523.8,4523.7,0.2053]
[1759523681974,1.17561,4523.8,4523.7,0.2053]
[1759523682877,1.17561,4523.8,4523.7,0.4187]
[1759523684781,1.17561,4523.8,4523.7,1.10132]
[1759523684983,0.95231,4523.8,4523.7,1.10132]
[1759523685482,0.73109,4524.0,4523.9,0.7037]
[1759523687485,0.39759,4524.1,4524.0,1.10129]
[1759523687782,0.3335,4524.4,4524.3,0.7037]
[1759523687983,0.39756,4524.5,4524.4,0.7037]
[1759523688485,0.73106,4524.5,4524.4,0.7037]
[1759523688783,1.07466,4524.5,4524.4,0.7037]
[1759523688979,0.778,4524.4,4524.3,3.4288]
[1759523689286,0.778,4524.4,4524.3,3.2078]
[1759523689481,1.1756,4523.9,4523.8,3.2078]
[1759523689783,1.1756,4523.9,4523.8,3.6341]
[1759523689983,1.1756,4523.9,4523.8,3.8475]
[1759523692188,0.778,4523.9,4523.8,4.1325]
[1759523692387,0.3335,4523.9,4523.8,4.1325]
[1759523692688,0.3335,4523.9,4523.8,4.53011]
[1759523693388,0.7311,4523.9,4523.8,4.53011]
[1759523693787,0.9523,4523.9,4523.8,4.53011]
[1759523694589,0.7311,4523.9,4523.8,4.53011]
[1759523695888,0.3335,4523.9,4523.8,4.53011]
[1759523696089,0.7311,4523.9,4523.8,4.53011]
[1759523697591,0.9523,4523.9,4523.8,4.53011]
[1759523700286,0.3335,4524.4,4524.3,1.10126]
[1759523700586,0.3335,4524.4,4524.3,4.53006]
[1759523700785,1.17552,4524.8,4524.7,0.2134]
[1759523700985,1.17552,4524.8,4524.7,0.6397]
[1759523701882,0.3335,4524.8,4524.7,1.32223]
[1759523702082,0.40009527,4525.0,4524.9,0.7312]
[1759523702382,0.72169527,4525.0,4524.9,4.16]
[1759523702586,0.53388527,4525.0,4524.9,4.33546511]
[1759523702783,0.32418527,4525.0,4524.9,4.33546511]
[1759523703188,0.00258527,4525.0,4524.9,4.33546511]
[1759523707791,0.00258527,4525.0,4524.9,4.73298511]
[1759523710097,0.00032716,4525.0,4524.9,9.73298511]
[1759523710896,0.00032716,4525.0,4524.9,11.31618303]
[1759523711487,0.53162716,4525.0,4524.9,6.09518303]
[1759523711693,0.32192716,4525.0,4524.9,4.73298511]
[1759523714299,0.32192716,4525.0,4524.9,6.31618303]
[1759523714696,0.32192716,4525.0,4524.9,4.73298511]
[1759523715301,0.94186,4525.5,4525.4,0.5441]
[1759523715600,0.94186,4525.5,4525.4,4.37037]
[1759523715792,0.94186,4525.5,4525.4,4.59427]
[1759523716199,0.94423395,4525.5,4525.4,4.59427]
[1759523717201,1.26583395,4525.5,4525.4,4.59427]
[1759523717601,1.14413395,4525.5,4525.4,4.59427]
[1759523718201,0.00237395,4525.5,4525.4,4.59427]
[1759523718998,0.39983395,4525.5,4525.4,4.59427]
[1759523719192,0.93113395,4525.5,4525.4,4.59427]
[1759523720902,0.93113395,4525.5,4525.4,4.1968]
[1759523721801,0.93113395,4525.5,4525.4,4.59427]
[1759523723503,0.93113395,4525.5,4525.4,4.1968]
[1759523723701,1.26583395,4525.5,4525.4,3.9758]
[1759523723908,0.39751,4525.0,4524.9,3.38326511]
[1759523724107,0.92881,4525.0,4524.9,4.37226511]
[1759523724499,0.92881,4525.0,4524.9,4.15126511]
[1759523724797,0.92881,4525.0,4524.9,4.37226511]
[1759523725705,0.92881,4525.0,4524.9,4.15126511]
[1759523725905,1.14181,4525.0,4524.9,4.37226511]
[1759523726507,0.5313,4525.0,4524.9,4.37226511]
[1759523726711,0.2097,4525.0,4524.9,4.37226511]
[1759523726902,0.3975,4525.1,4524.9,4.37226511]
[1759523727199,0.7443,4525.0,4524.9,4.15126511]
[1759523727405,0.7443,4525.0,4524.9,4.37226511]
[1759523727599,0.3975,4525.1,4524.9,4.37226511]
[1759523727804,0.3975,4525.1,4524.9,4.76977511]
[1759523728003,0.3975,4525.1,4525.0,0.8878]
[1759523730102,0.00237395,4525.5,4525.4,1.15197]
[1759523730307,0.00237395,4525.5,4525.4,4.58077]
[1759523731004,0.3323,4526.0,4525.9,0.39743]
[1759523731199,0.99343,4526.6,4526.0,0.8878]
[1759523731200,0.39741,4526.1,4526.0,0.8878]
[1759523731399,0.2251,4526.7,4526.6,0.4254]
[1759523731599,0.2251,4526.7,4526.6,0.9755]
[1759523731600,1.17676,4526.7,4526.6,0.9755]
[1759523732208,1.17938467,4526.7,4526.6,0.97780602]
[1759523733006,1.17938467,4526.7,4526.6,4.18560602]
[1759523735407,0.00262467,4526.7,4526.6,4.18560602]
[1759523737210,0.95674454,4527.9,4527.8,0.7155]
[1759523737404,0.95674454,4527.9,4527.8,4.1443]
[1759523737808,0.01409454,4527.9,4527.8,4.1443]
[1759523738108,0.01578833,4527.9,4527.8,4.32667138]
[1759523746622,0.41303833,4527.9,4527.8,4.32667138]
[1759523746826,0.41303833,4527.9,4527.8,4.72393138]
[1759523748427,0.95843833,4527.9,4527.8,4.72393138]
[1759523748628,0.41303833,4527.9,4527.8,4.72393138]
[1759523749027,0.01578833,4527.9,4527.8,4.72393138]
[1759523749829,0.41303833,4527.9,4527.8,4.72393138]
[1759523755932,0.41303833,4527.9,4527.8,4.32667138]
[1759523756139,0.41303833,4527.9,4527.8,4.72393138]
[1759523756328,0.01578833,4527.9,4527.8,4.72393138]
[1759523757026,0.41303833,4527.9,4527.8,4.72393138]
[1759523757433,0.41303833,4527.9,4527.8,4.32667138]
[1759523757733,1.17373833,4527.9,4527.8,4.32667138]
[1759523758128,1.17373833,4527.9,4527.8,4.72393138]
[1759523758324,0.56118833,4527.9,4527.8,4.72393138]
[1759523758628,0.41303833,4527.9,4527.8,4.72393138]
[1759523758829,0.01578833,4527.9,4527.8,4.72393138]
[1759523760334,0.41303833,4527.9,4527.8,4.72393138]
[1759523760738,0.01578833,4527.9,4527.8,4.72393138]
[1759523765342,0.01578833,4527.9,4527.8,6.30403304]
[1759523766338,0.01578833,4527.9,4527.8,4.72393138]
[1759523771446,0.91364,4529.2,4529.1,0.7701]
[1759523771644,0.91364,4529.2,4529.1,0.9911]
[1759523772244,0.91586326,4529.2,4529.1,0.9911]
[1759523772441,1.12306326,4529.2,4529.1,0.9911]
[1759523773344,0.00222326,4529.2,4529.1,1.38825]
[1759523773542,0.00222326,4529.2,4529.1,0.7701]
[1759523773848,1.12306326,4529.2,4529.1,0.4444]
[1759523774038,1.12306326,4529.2,4529.1,0.2234]
[1759523774240,1.12085,4529.1,4529.0,3.2078]
[1759523774445,1.12085,4529.1,4529.0,3.4288]
[1759523774744,1.12085,4529.1,4529.0,3.6522]
[1759523774939,1.12085,4529.1,4529.0,3.9842]
[1759523775341,1.12085,4529.1,4529.0,3.7632]
[1759523775549,1.12085,4529.1,4529.0,3.9842]
[1759523776748,1.12085,4529.1,4529.0,3.6522]
[1759523777947,1.12085,4529.1,4529.0,3.2078]
[1759523778155,0.7237,4528.6,4528.5,3.2078]
[1759523778348,1.12089,4528.6,4528.5,3.9842]
[1759523778548,1.12089,4528.6,4528.5,3.4288]
[1759523778749,1.12089,4528.6,4528.5,3.6522]
[1759523779145,1.12089,4528.6,4528.5,3.7632]
[1759523779455,0.39719,4528.7,4528.6,1.16729]
[1759523779755,0.70248,4528.8,4528.7,1.16728]
[1759523780051,0.70248,4528.8,4528.7,0.9911]
[1759523780254,0.91368,4528.8,4528.7,0.9911]
[1759523781251,0.39716,4529.0,4528.9,0.7701]
[1759523781442,0.39716,4529.0,4528.9,0.9911]
[1759523782448,0.41287828,4529.0,4528.9,0.9911]
[1759523783361,0.01571828,4529.0,4528.9,1.38826]
[1759523783647,0.41287828,4529.0,4528.9,0.9911]
[1759523784450,0.71817828,4529.0,4528.9,0.9911]
[1759523785655,0.41287828,4529.0,4528.9,1.38826]
[1759523785848,0.41287828,4529.0,4528.9,0.9911]
[1759523786349,0.41287828,4529.0,4528.9,1.38826]
[1759523789263,0.01571828,4529.0,4528.9,1.38826]
[1759523790064,0.41287828,4529.0,4528.9,1.38826]
[1759523790755,0.01571828,4529.0,4528.9,1.38826]
[1759523792754,0.01571828,4529.0,4528.9,2.9677385]
[1759523793553,0.01571828,4529.0,4528.9,6.38826]
[1759523795661,1.17517828,4529.0,4528.9,2.34814918]
[1759523795957,0.01571828,4529.0,4528.9,1.38826]
[1759523797659,0.96277828,4529.0,4528.9,0.9911]
[1759523798152,0.56561828,4529.0,4528.9,0.9911]
[1759523798466,0.96277828,4529.0,4528.9,1.38826]
[1759523798653,0.96277828,4529.0,4528.9,0.9911]
[1759523798855,0.56561828,4529.0,4528.9,1.38826]
[1759523799156,0.96277828,4529.0,4528.9,1.38826]
[1759523799760,0.96277828,4529.0,4528.9,0.9911]
[1759523799959,0.96277828,4529.0,4528.9,1.38826]
[1759523799960,0.56561828,4529.0,4528.9,1.38826]
[1759523802060,1.17517828,4529.0,4528.9,0.7701]
[1759523802262,1.30937828,4529.0,4528.9,0.7701]
[1759523802464,0.91221828,4529.0,4528.9,1.38826]
[1759523802664,0.77801828,4529.0,4528.9,1.38826]
[1759523803163,1.17517828,4529.0,4528.9,1.38826]
[1759523803865,1.17517828,4529.0,4528.9,0.9911]
[1759523804054,1.30937828,4529.0,4528.9,0.9911]
[1759523804664,1.30937828,4529.0,4528.9,0.7701]
[1759523804859,0.61738,4528.7,4528.6,2.11364918]
[1759523805067,1.15948,4528.7,4528.6,0.7566]
[1759523805367,1.17519828,4528.7,4528.6,0.5356]
[1759523805670,1.15949,4528.6,4528.5,3.2078]
[1759523805972,0.7623,4528.6,4528.5,4.5664]
[1759523806268,0.5499,4528.6,4528.5,4.7008]
[1759523806573,0.56561828,4528.6,4528.5,4.7008]
[1759523807865,1.17520828,4528.6,4528.5,4.5664]
[1759523808368,0.77801828,4528.6,4528.5,4.5664]
[1759523808670,0.77801828,4528.6,4528.5,4.3454]
[1759523808862,0.77801828,4528.6,4528.5,4.5664]
[1759523809069,0.77801828,4528.6,4528.5,4.3454]
[1759523809263,0.77801828,4528.6,4528.5,4.5664]
[1759523811670,0.77801828,4528.6,4528.5,6.14444918]
[1759523812369,0.56561828,4528.6,4528.5,6.14444918]
[1759523812567,0.01571828,4528.6,4528.5,6.27884918]
[1759523812773,0.01571828,4528.6,4528.5,4.7008]
[1759523814562,0.00222326,4529.2,4529.1,1.13755]
[1759523814766,0.00222326,4529.2,4529.1,4.56635]
[1759523819471,0.55212326,4529.2,4529.1,4.56635]
[1759523819674,1.16166326,4529.2,4529.1,3.2078]
[1759523819878,1.16166326,4529.2,4529.1,3.4288]
[1759523820173,6.16166326,4529.2,4529.1,0.221]
[1759523821876,6.16166326,4529.2,4529.1,0.4263]
[1759523822482,6.16166326,4529.2,4529.1,0.221]
[1759523822984,0.83106,4528.9,4528.8,0.2166]
[1759523823174,0.7405,4528.9,4528.8,0.221]
[1759523823376,1.13766,4528.9,4528.8,0.221]
[1759523823683,1.13766,4528.9,4528.8,0.4376]
[1759523825879,0.2212,4528.2,4528.1,1.58017383]
[1759523826184,0.7405,4528.1,4528.0,3.9522]
[1759523826383,0.7405,4528.1,4528.0,4.1732]
[1759523826983,0.73956,4529.0,4528.9,0.433]
[1759523827181,0.96076,4529.0,4528.9,0.9654]
[1759523827382,1.26736,4529.0,4528.9,0.9654]
[1759523827582,1.26736,4529.0,4528.9,0.654]
[1759523828488,1.26736,4529.0,4528.9,0.4376]
[1759523829783,1.26736,4529.0,4528.9,0.221]
[1759523830784,1.26736,4529.0,4528.6,3.2078]
[1759523830785,0.39718,4528.7,4528.6,3.2078]
[1759523831091,1.13768,4528.7,4528.6,3.4288]
[1759523831589,1.13768,4528.7,4528.6,2.66528219]
[1759523831886,1.13768,4528.7,4527.0,0.1344]
[1759523831887,1.13777,4527.7,4527.6,0.7444]
[1759523832088,1.13777,4527.7,4527.6,0.9654]